fUSD/lending_fUSD_20250125
["ID","MTS","AMOUNT","RATE_DAILY","PERIOD"]
[350306783,1737780667236,-729.49,0.00017534,2]
[350306784,1737780667246,-1527.98,0.00017534,2]
[350306785,1737780667255,-1904.23,0.00017534,2]
[350306786,1737780667264,-745.81,0.00017534,2]
[350306787,1737780667273,-2478.55,0.00017534,2]
[350306788,1737780667282,-500.0,0.00017534,2]
[350306789,1737780667291,-596.99,0.00017534,2]
[350306790,1737780667300,-1748.83,0.00017534,2]
[350306791,1737780667310,-3070.29,0.00017534,2]
[350306792,1737780667319,-192.49332827,0.00017534,2]
[350306793,1737780667328,-717.53,0.00017534,2]
[350306794,1737780667338,-893.72,0.00017534,2]
[350306795,1737780667347,-4503.34,0.00017534,2]
[350306796,1737780667356,-3662.54,0.00017534,2]
[350306797,1737780667365,-500.0,0.00017534,2]
[350306798,1737780667376,-660.41,0.00017534,2]
[350306799,1737780667386,-830.75,0.00017534,2]
[350306800,1737780667396,-1628.53,0.00017534,2]
[350306801,1737780667407,-2784.54,0.00017534,2]
[350306802,1737780667417,-2066.06,0.00017534,2]
[350306803,1737780667427,-500.0,0.00017534,2]
[350306804,1737780667436,-541.81,0.00017534,2]
[350306805,1737780667446,-735.03,0.00017534,2]
[350306806,1737780667456,-500.0,0.00017534,2]
[350306807,1737780667465,-500.0,0.00017534,2]
[350306808,1737780667474,-1358.49,0.00017534,2]
[350306809,1737780667484,-1231.6,0.00017534,2]
[350306810,1737780667493,-1298.51,0.00017534,2]
[350306811,1737780667503,-500.0,0.00017534,2]
[350306812,1737780667512,-500.0,0.00017534,2]
[350306813,1737780667522,-2450.52,0.00017534,2]
[350306814,1737780667535,-659.41,0.00017534,2]
[350306815,1737780667544,-3853.39,0.00017534,2]
[350306816,1737780667554,-519.07561583,0.00017534,2]
[350306817,1737780667563,-964.84,0.00017534,2]
[350306818,1737780667575,-1262.53,0.00017534,2]
[350306819,1737780667585,-1240.26,0.00017534,2]
[350306820,1737780667594,-883.14,0.00017534,2]
[350306821,1737780667603,-500.0,0.00017534,2]
[350306822,1737780667613,-783.95,0.00017534,2]
[350306823,1737780667623,-500.0,0.00017534,2]
[350306824,1737780667633,-957.39,0.00017534,2]
[350306825,1737780667643,-791.69,0.00017534,2]
[350306826,1737780667652,-854.55,0.00017534,2]
[350306827,1737780667661,-1363.36,0.00017534,2]
[350306828,1737780667671,-500.0,0.00017534,2]
[350306829,1737780667680,-500.0,0.00017534,2]
[350306830,1737780667690,-500.0,0.00017534,2]
[350306831,1737780667700,-3755.43,0.00017534,2]
[350306832,1737780667711,-500.0,0.00017534,2]
[350306833,1737780667720,-500.0,0.00017534,2]
[350306834,1737780667730,-783.97,0.00017534,2]
[350306835,1737780667740,-1669.05,0.00017534,2]
[350306836,1737780667751,-648.38,0.00017534,2]
[350306837,1737780667761,-500.0,0.00017534,2]
[350306838,1737780667770,-880.32,0.00017534,2]
[350306839,1737780667780,-783.6,0.00017534,2]
[350306840,1737780667789,-541.22,0.00017534,2]
[350306841,1737780667798,-631.42,0.00017595,2]
[350306842,1737780667808,-655.57,0.00017595,2]
[350306843,1737780667818,-883.17,0.00017595,2]
[350306844,1737780667827,-1126.94,0.00017595,2]
[350306845,1737780667837,-1212.78,0.00017595,2]
[350306846,1737780667847,-3128.26,0.00017595,2]
[350306847,1737780667856,-6082.89,0.00017595,2]
[350306848,1737780667866,-996.63,0.00017595,2]
[350306849,1737780667876,-770.51,0.00017595,2]
[350306850,1737780667886,-2173.77,0.00017595,2]
[350306851,1737780667896,-500.0,0.00017595,2]
[350306852,1737780667905,-788.44,0.00017595,2]
[350306853,1737780667915,-1064.43,0.00017595,2]
[350306854,1737780667924,-1714.38,0.00017595,2]
[350306855,1737780667934,-500.0,0.00017595,2]
[350306856,1737780667943,-1000.0,0.00017595,2]
[350306857,1737780667953,-1311.29,0.00017595,2]
[350306858,1737780667965,-544.74,0.00017595,2]
[350306859,1737780667975,-2088.26,0.00017595,2]
[350306860,1737780667984,-2022.35,0.00017595,2]
[350306861,1737780667994,-54529.36381126,0.00017617,2]
[350306862,1737780668004,-585.62,0.0001767,2]
[350306863,1737780668013,-694.69,0.0001767,2]
[350306864,1737780668022,-500.0,0.00017671,2]
[350306865,1737780668031,-500.0,0.00017671,2]
[350306866,1737780668040,-500.0,0.00017671,2]
[350306867,1737780668050,-500.0,0.00017671,2]
[350306868,1737780668059,-500.0,0.00017671,2]
[350306869,1737780668069,-500.0,0.00017671,2]
[350306870,1737780668078,-545.2,0.00017671,2]
[350306871,1737780668088,-500.0,0.00017671,2]
[350306872,1737780668099,-552.37,0.00017671,2]
[350306873,1737780668108,-746.74,0.00017671,2]
[350306874,1737780668117,-500.0,0.00017671,2]
[350306875,1737780668127,-500.0,0.00017671,2]
[350306876,1737780668138,-623.71,0.00017671,2]
[350306877,1737780668148,-560.1,0.00017671,2]
[350306878,1737780668157,-500.0,0.00017671,2]
[350306879,1737780668167,-500.0,0.00017671,2]
[350306880,1737780668176,-500.0,0.00017671,2]
[350306881,1737780668187,-567.11,0.00017671,2]
[350306882,1737780668196,-500.0,0.00017671,2]
[350306883,1737780668206,-500.0,0.00017671,2]
[350306884,1737780668215,-500.0,0.00017671,2]
[350306885,1737780668224,-156.187301,0.00017671,2]
[350306886,1737780668234,-531.14,0.00017671,2]
[350306887,1737780668245,-500.0,0.00017671,2]
[350306888,1737780668255,-602.85,0.00017671,2]
[350306889,1737780668265,-163.487389,0.00017671,2]
[350306890,1737780668274,-500.0,0.00017671,2]
[350306891,1737780668284,-500.0,0.00017671,2]
[350306892,1737780668293,-500.0,0.00017671,2]
[350306893,1737780668303,-594.18,0.00017671,2]
[350306894,1737780668312,-522.49578747,0.00017671,2]
[350306895,1737780668322,-500.0,0.00017671,2]
[350306896,1737780668332,-560.27,0.00017671,2]
[350306897,1737780668342,-500.0,0.00017671,2]
[350306898,1737780668351,-562.5,0.00017671,2]
[350306899,1737780668361,-500.0,0.00017671,2]
[350306900,1737780668371,-567.73,0.00017671,2]
[350306901,1737780668380,-500.0,0.00017671,2]
[350306902,1737780668390,-550.16,0.00017671,2]
[350306903,1737780668399,-500.0,0.00017671,2]
[350306904,1737780668409,-614.67,0.00017671,2]
[350306905,1737780668418,-500.0,0.00017671,2]
[350306906,1737780668428,-500.0,0.00017671,2]
[350306907,1737780668438,-500.0,0.00017671,2]
[350306908,1737780668447,-666.81,0.00017671,2]
[350306909,1737780668462,-500.0,0.00017671,2]
[350306910,1737780668472,-500.0,0.00017671,2]
[350306911,1737780668481,-506.56,0.00017671,2]
[350306912,1737780668491,-500.0,0.00017671,2]
[350306913,1737780668501,-594.67,0.00017671,2]
[350306914,1737780668510,-628.69664135,0.00017671,2]
[350306915,1737780668520,-589.07,0.00017671,2]
[350306916,1737780668532,-500.0,0.00017671,2]
[350306917,1737780668543,-500.0,0.00017671,2]
[350306918,1737780668552,-554.24,0.00017671,2]
[350306919,1737780668562,-914.03,0.00017671,2]
[350306920,1737780668574,-728.54,0.00017671,2]
[350306921,1737780668583,-566.01,0.00017671,2]
[350306922,1737780668593,-500.0,0.00017671,2]
[350306923,1737780668603,-621.9,0.00017671,2]
[350306924,1737780668615,-500.0,0.00017671,2]
[350306925,1737780668625,-2348.33,0.00017671,2]
[350306926,1737780668635,-3825.28,0.00017671,2]
[350306927,1737780668647,-1272.56,0.00017671,2]
[350306928,1737780668657,-903.33,0.00017671,2]
[350306929,1737780668667,-600.69,0.00017671,2]
[350306930,1737780668677,-2002.96,0.00017671,2]
[350306931,1737780668686,-1031.41,0.00017671,2]
[350306932,1737780668695,-500.0,0.00017671,2]
[350306933,1737780668706,-1165.45,0.00017671,2]
[350306934,1737780668716,-155.907894,0.00017671,2]
[350306935,1737780668726,-811.7,0.00017671,2]
[350306936,1737780668736,-563.79,0.00017671,2]
[350306937,1737780668746,-2254.04,0.00017671,2]
[350306938,1737780668757,-810.68,0.00017671,2]
[350306939,1737780668767,-500.0,0.00017671,2]
[350306940,1737780668776,-768.27,0.00017671,2]
[350306941,1737780668786,-1204.31,0.00017671,2]
[350306942,1737780668796,-1676.36,0.00017671,2]
[350306943,1737780668806,-900.82,0.00017671,2]
[350306944,1737780668816,-1031.26,0.00017671,2]
[350306945,1737780668827,-500.0,0.00017671,2]
[350306946,1737780668837,-500.0,0.00017671,2]
[350306947,1737780668847,-2605.78,0.00017671,2]
[350306948,1737780668857,-3652.55,0.00017671,2]
[350306949,1737780668867,-855.5,0.00017671,2]
[350306950,1737780668876,-887.32,0.00017671,2]
[350306951,1737780668886,-878.97,0.00017671,2]
[350306952,1737780668896,-2371.04,0.00017671,2]
[350306953,1737780668906,-1435.2,0.00017671,2]
[350306954,1737780668916,-500.0,0.00017671,2]
[350306955,1737780668926,-500.0,0.00017671,2]
[350306956,1737780668935,-1256.16,0.00017671,2]
[350306957,1737780668946,-859.23,0.00017671,2]
[350306958,1737780668956,-631.62,0.00017671,2]
[350306959,1737780668966,-2214.61,0.00017671,2]
[350306960,1737780668976,-1499.56,0.00017671,2]
[350306961,1737780668986,-501.66,0.00017671,2]
[350306962,1737780668996,-764.1,0.00017671,2]
[350306963,1737780669005,-500.0,0.00017671,2]
[350306964,1737780669015,-4434.4,0.00017671,2]
[350306965,1737780669025,-880.26,0.00017671,2]
[350306966,1737780669035,-4770.01,0.00017671,2]
[350306967,1737780669045,-1286.41,0.00017671,2]
[350306968,1737780669055,-2525.92,0.00017671,2]
[350306969,1737780669065,-500.0,0.00017671,2]
[350306970,1737780669195,-617.18,0.00017671,2]
[350306971,1737780669206,-500.0,0.00017671,2]
[350306972,1737780669217,-1248.95,0.00017671,2]
[350306973,1737780669226,-1045.55,0.00017671,2]
[350306974,1737780669236,-500.0,0.00017671,2]
[350306975,1737780669246,-335.27559696,0.00017671,2]
[350306976,1737780669255,-912.61,0.00017671,2]
[350306977,1737780669265,-347.28278402,0.00017671,2]
[350306978,1737780669274,-2347.72,0.00017671,2]
[350306979,1737780669283,-797.89,0.00017671,2]
[350306980,1737780669293,-2437.51,0.00017671,2]
[350306981,1737780669302,-1162.81,0.00017671,2]
[350306982,1737780669311,-500.0,0.00017671,2]
[350306983,1737780669321,-500.0,0.00017671,2]
[350306984,1737780669331,-729.49,0.00017671,2]
[350306985,1737780669341,-1527.98,0.00017671,2]
[350306986,1737780669352,-1904.23,0.00017671,2]
[350306987,1737780669363,-745.81,0.00017671,2]
[350306988,1737780669373,-2478.55,0.00017671,2]
[350306989,1737780669382,-500.0,0.00017671,2]
[350306990,1737780669393,-596.99,0.00017671,2]
[350306991,1737780669403,-1748.83,0.00017671,2]
[350306992,1737780669415,-3070.29,0.00017671,2]
[350306993,1737780669425,-717.53,0.00017671,2]
[350306994,1737780669435,-893.72,0.00017671,2]
[350306995,1737780669446,-4503.34,0.00017671,2]
[350306996,1737780669457,-3662.54,0.00017671,2]
[350306997,1737780669468,-500.0,0.00017671,2]
[350306998,1737780669477,-660.41,0.00017671,2]
[350306999,1737780669487,-830.75,0.00017671,2]
[350307000,1737780669498,-1628.53,0.00017671,2]
[350307001,1737780669508,-2784.54,0.00017671,2]
[350307002,1737780669517,-2066.06,0.00017671,2]
[350307003,1737780669527,-500.0,0.00017671,2]
[350307004,1737780669540,-541.81,0.00017671,2]
[350307005,1737780669550,-735.03,0.00017671,2]
[350307006,1737780669559,-500.0,0.00017671,2]
[350307007,1737780669571,-500.0,0.00017671,2]
[350307008,1737780669581,-1358.49,0.00017671,2]
[350307009,1737780669590,-1231.6,0.00017671,2]
[350307010,1737780669600,-1298.51,0.00017671,2]
[350307011,1737780669615,-500.0,0.00017671,2]
[350307012,1737780669626,-500.0,0.00017671,2]
[350307013,1737780669636,-2450.52,0.00017671,2]
[350307014,1737780669645,-659.41,0.00017671,2]
[350307015,1737780669655,-3853.39,0.00017671,2]
[350307016,1737780669665,-964.84,0.00017671,2]
[350307017,1737780669675,-1262.53,0.00017671,2]
[350307018,1737780669686,-1240.26,0.00017671,2]
[350307019,1737780669697,-883.14,0.00017671,2]
[350307020,1737780669706,-500.0,0.00017671,2]
[350307021,1737780669718,-783.95,0.00017671,2]
[350307022,1737780669728,-500.0,0.00017671,2]
[350307023,1737780669737,-957.39,0.00017671,2]
[350307024,1737780669747,-791.69,0.00017671,2]
[350307025,1737780669757,-854.55,0.00017671,2]
[350307026,1737780669766,-1363.36,0.00017671,2]
[350307027,1737780669776,-500.0,0.00017671,2]
[350307028,1737780669785,-500.0,0.00017671,2]
[350307029,1737780669794,-500.0,0.00017671,2]
[350307030,1737780669804,-3755.43,0.00017671,2]
[350307031,1737780669814,-500.0,0.00017671,2]
[350307032,1737780669823,-500.0,0.00017671,2]
[350307033,1737780669833,-783.97,0.00017671,2]
[350307034,1737780669843,-1669.05,0.00017671,2]
[350307035,1737780669852,-648.38,0.00017671,2]
[350307036,1737780669862,-500.0,0.00017671,2]
[350307037,1737780669871,-880.32,0.00017671,2]
[350307038,1737780669881,-783.6,0.00017671,2]
[350307039,1737780669890,-541.22,0.00017671,2]
[350307040,1737780669900,-631.42,0.00017732,2]
[350307041,1737780669910,-655.57,0.00017732,2]
[350307042,1737780669919,-883.17,0.00017732,2]
[350307043,1737780669929,-1126.94,0.00017732,2]
[350307044,1737780669938,-1212.78,0.00017732,2]
[350307045,1737780669947,-3128.26,0.00017732,2]
[350307046,1737780669957,-6082.89,0.00017732,2]
[350307047,1737780669968,-996.63,0.00017732,2]
[350307048,1737780669978,-770.51,0.00017732,2]
[350307049,1737780669987,-2173.77,0.00017732,2]
[350307050,1737780669996,-518.65535777,0.00017732,2]
[350307051,1737780670006,-788.44,0.00017732,2]
[350307052,1737780670015,-1064.43,0.00017732,2]
[350307053,1737780670025,-1714.38,0.00017732,2]
[350307054,1737780670034,-500.0,0.00017732,2]
[350307055,1737780670044,-1000.0,0.00017732,2]
[350307056,1737780670053,-1311.29,0.00017732,2]
[350307057,1737780670063,-544.74,0.00017732,2]
[350307058,1737780670073,-2088.26,0.00017732,2]
[350307059,1737780670082,-2022.35,0.00017732,2]
[350307060,1737780670091,-513.63431958,0.00017762,2]
[350307061,1737780670100,-1000.0,0.000178,3]
[350307062,1737780670110,-585.62,0.00017807,2]
[350307063,1737780670119,-694.69,0.00017807,2]
[350307064,1737780670128,-342.27127627,0.00017808,2]
[350307065,1737780670138,-500.0,0.00017808,2]
[350307066,1737780670147,-500.0,0.00017808,2]
[350307067,1737780670156,-500.0,0.00017808,2]
[350307068,1737780670165,-500.0,0.00017808,2]
[350307069,1737780670175,-500.0,0.00017808,2]
[350307070,1737780670184,-500.0,0.00017808,2]
[350307071,1737780670194,-552.37,0.00017808,2]
[350307072,1737780670203,-746.74,0.00017808,2]
[350307073,1737780670215,-500.0,0.00017808,2]
[350307074,1737780670224,-500.0,0.00017808,2]
[350307075,1737780670234,-623.71,0.00017808,2]
[350307076,1737780670243,-560.1,0.00017808,2]
[350307077,1737780670252,-500.0,0.00017808,2]
[350307078,1737780670262,-500.0,0.00017808,2]
[350307079,1737780670271,-568.55,0.00017808,2]
[350307080,1737780670280,-500.0,0.00017808,2]
[350307081,1737780670290,-300.52,0.00017808,2]
[350307082,1737780670299,-500.0,0.00017808,2]
[350307083,1737780670308,-156.187301,0.00017808,2]
[350307084,1737780670317,-531.14,0.00017808,2]
[350307085,1737780670327,-500.0,0.00017808,2]
[350307086,1737780670336,-602.85,0.00017808,2]
[350307087,1737780670346,-500.0,0.00017808,2]
[350307088,1737780670355,-500.0,0.00017808,2]
[350307089,1737780670364,-500.0,0.00017808,2]
[350307090,1737780670374,-594.18,0.00017808,2]
[350307091,1737780670383,-500.0,0.00017808,2]
[350307092,1737780670392,-560.27,0.00017808,2]
[350307093,1737780670402,-500.0,0.00017808,2]
[350307094,1737780670411,-562.5,0.00017808,2]
[350307095,1737780670420,-500.0,0.00017808,2]
[350307096,1737780670430,-567.73,0.00017808,2]
[350307097,1737780670441,-500.0,0.00017808,2]
[350307098,1737780670450,-550.16,0.00017808,2]
[350307099,1737780670463,-500.0,0.00017808,2]
[350307100,1737780670472,-614.67,0.00017808,2]
[350307101,1737780670482,-500.0,0.00017808,2]
[350307102,1737780670491,-500.0,0.00017808,2]
[350307103,1737780670501,-500.0,0.00017808,2]
[350307104,1737780670510,-666.81,0.00017808,2]
[350307105,1737780670520,-365.6,0.00017808,2]
[350307106,1737780670532,-500.0,0.00017808,2]
[350307107,1737780670543,-506.56,0.00017808,2]
[350307108,1737780670552,-500.0,0.00017808,2]
[350307109,1737780670562,-594.67,0.00017808,2]
[350307110,1737780670571,-589.07,0.00017808,2]
[350307111,1737780670582,-500.0,0.00017808,2]
[350307112,1737780670591,-500.0,0.00017808,2]
[350307113,1737780670601,-554.24,0.00017808,2]
[350307114,1737780670611,-914.03,0.00017808,2]
[350307115,1737780670621,-728.54,0.00017808,2]
[350307116,1737780670631,-566.01,0.00017808,2]
[350307117,1737780670640,-500.0,0.00017808,2]
[350307118,1737780670651,-621.9,0.00017808,2]
[350307119,1737780670660,-500.0,0.00017808,2]
[350307120,1737780670671,-2348.33,0.00017808,2]
[350307121,1737780670680,-3825.28,0.00017808,2]
[350307122,1737780670689,-1272.56,0.00017808,2]
[350307123,1737780670698,-903.33,0.00017808,2]
[350307124,1737780670708,-600.69,0.00017808,2]
[350307125,1737780670720,-2002.96,0.00017808,2]
[350307126,1737780670730,-1031.41,0.00017808,2]
[350307127,1737780670741,-500.0,0.00017808,2]
[350307128,1737780670752,-1165.45,0.00017808,2]
[350307129,1737780670762,-811.7,0.00017808,2]
[350307130,1737780670772,-563.79,0.00017808,2]
[350307131,1737780670782,-2254.04,0.00017808,2]
[350307132,1737780670792,-810.68,0.00017808,2]
[350307133,1737780670802,-500.0,0.00017808,2]
[350307134,1737780670811,-768.27,0.00017808,2]
[350307135,1737780670822,-1204.31,0.00017808,2]
[350307136,1737780670832,-1676.36,0.00017808,2]
[350307137,1737780670841,-900.82,0.00017808,2]
[350307138,1737780670851,-1031.26,0.00017808,2]
[350307139,1737780670862,-261.66089881,0.00017808,2]
[350307140,1737780670871,-160.16722,0.00017808,2]
[350307141,1737780670880,-500.0,0.00017808,2]
[350307142,1737780670889,-2605.78,0.00017808,2]
[350307143,1737780670899,-3652.55,0.00017808,2]
[350307144,1737780670909,-855.5,0.00017808,2]
[350307145,1737780670918,-887.32,0.00017808,2]
[350307146,1737780670928,-878.97,0.00017808,2]
[350307147,1737780670938,-2371.04,0.00017808,2]
[350307148,1737780670947,-1435.2,0.00017808,2]
[350307149,1737780670964,-500.0,0.00017808,2]
[350307150,1737780670973,-500.0,0.00017808,2]
[350307151,1737780670982,-1256.16,0.00017808,2]
[350307152,1737780670991,-859.23,0.00017808,2]
[350307153,1737780671001,-631.62,0.00017808,2]
[350307154,1737780671011,-2214.61,0.00017808,2]
[350307155,1737780671021,-1499.56,0.00017808,2]
[350307156,1737780671031,-501.66,0.00017808,2]
[350307157,1737780671040,-764.1,0.00017808,2]
[350307158,1737780671050,-500.0,0.00017808,2]
[350307159,1737780671059,-4434.4,0.00017808,2]
[350307160,1737780671068,-880.26,0.00017808,2]
[350307161,1737780671079,-4770.01,0.00017808,2]
[350307162,1737780671088,-1286.41,0.00017808,2]
[350307163,1737780671097,-2525.92,0.00017808,2]
[350307164,1737780671106,-500.0,0.00017808,2]
[350307165,1737780671115,-617.18,0.00017808,2]
[350307166,1737780671124,-519.24311767,0.00017808,2]
[350307167,1737780671134,-1248.95,0.00017808,2]
[350307168,1737780671143,-1045.55,0.00017808,2]
[350307169,1737780671152,-500.0,0.00017808,2]
[350307170,1737780671162,-912.61,0.00017808,2]
[350307171,1737780671171,-2347.72,0.00017808,2]
[350307172,1737780671183,-797.89,0.00017808,2]
[350307173,1737780671192,-2437.51,0.00017808,2]
[350307174,1737780671202,-1162.81,0.00017808,2]
[350307175,1737780671213,-500.0,0.00017808,2]
[350307176,1737780671222,-500.0,0.00017808,2]
[350307177,1737780671231,-729.49,0.00017808,2]
[350307178,1737780671240,-1527.98,0.00017808,2]
[350307179,1737780671250,-1904.23,0.00017808,2]
[350307180,1737780671259,-745.81,0.00017808,2]
[350307181,1737780671271,-2478.55,0.00017808,2]
[350307182,1737780671280,-500.0,0.00017808,2]
[350307183,1737780671290,-596.99,0.00017808,2]
[350307184,1737780671300,-1748.83,0.00017808,2]
[350307185,1737780671309,-3070.29,0.00017808,2]
[350307186,1737780671319,-717.53,0.00017808,2]
[350307187,1737780671328,-893.72,0.00017808,2]
[350307188,1737780671337,-4503.34,0.00017808,2]
[350307189,1737780671346,-3662.54,0.00017808,2]
[350307190,1737780671355,-500.0,0.00017808,2]
[350307191,1737780671365,-660.41,0.00017808,2]
[350307192,1737780671375,-1628.53,0.00017808,2]
[350307193,1737780671384,-830.75,0.00017808,2]
[350307194,1737780671394,-2784.54,0.00017808,2]
[350307195,1737780671403,-2066.06,0.00017808,2]
[350307196,1737780671413,-500.0,0.00017808,2]
[350307197,1737780671423,-541.81,0.00017808,2]
[350307198,1737780671432,-735.03,0.00017808,2]
[350307199,1737780671441,-500.0,0.00017808,2]
[350307200,1737780671451,-500.0,0.00017808,2]
[350307201,1737780671460,-1358.49,0.00017808,2]
[350307202,1737780671472,-1231.6,0.00017808,2]
[350307203,1737780671481,-1298.51,0.00017808,2]
[350307204,1737780671491,-500.0,0.00017808,2]
[350307205,1737780671502,-500.0,0.00017808,2]
[350307206,1737780671511,-2450.52,0.00017808,2]
[350307207,1737780671521,-659.41,0.00017808,2]
[350307208,1737780671532,-3853.39,0.00017808,2]
[350307209,1737780671542,-964.84,0.00017808,2]
[350307210,1737780671552,-1262.53,0.00017808,2]
[350307211,1737780671562,-1240.26,0.00017808,2]
[350307212,1737780671573,-883.14,0.00017808,2]
[350307213,1737780671583,-500.0,0.00017808,2]
[350307214,1737780671593,-783.95,0.00017808,2]
[350307215,1737780671602,-500.0,0.00017808,2]
[350307216,1737780671615,-957.39,0.00017808,2]
[350307217,1737780671625,-791.69,0.00017808,2]
[350307218,1737780671634,-854.55,0.00017808,2]
[350307219,1737780671643,-1363.36,0.00017808,2]
[350307220,1737780671652,-500.0,0.00017808,2]
[350307221,1737780671661,-500.0,0.00017808,2]
[350307222,1737780671671,-500.0,0.00017808,2]
[350307223,1737780671680,-3755.43,0.00017808,2]
[350307224,1737780671690,-500.0,0.00017808,2]
[350307225,1737780671700,-500.0,0.00017808,2]
[350307226,1737780671709,-783.97,0.00017808,2]
[350307227,1737780671720,-1669.05,0.00017808,2]
[350307228,1737780671730,-648.38,0.00017808,2]
[350307229,1737780671739,-500.0,0.00017808,2]
[350307230,1737780671749,-880.32,0.00017808,2]
[350307231,1737780671758,-783.6,0.00017808,2]
[350307232,1737780671767,-541.22,0.00017808,2]
[350307233,1737780671776,-631.42,0.00017869,2]
[350307234,1737780671786,-655.57,0.00017869,2]
[350307235,1737780671795,-883.17,0.00017869,2]
[350307236,1737780671804,-1126.94,0.00017869,2]
[350307237,1737780671814,-1212.78,0.00017869,2]
[350307238,1737780671823,-3128.26,0.00017869,2]
[350307239,1737780671832,-6082.89,0.00017869,2]
[350307240,1737780671841,-996.63,0.00017869,2]
[350307241,1737780671851,-770.51,0.00017869,2]
[350307242,1737780671864,-2173.77,0.00017869,2]
[350307243,1737780671874,-788.44,0.00017869,2]
[350307244,1737780671883,-1064.43,0.00017869,2]
[350307245,1737780671893,-1714.38,0.00017869,2]
[350307246,1737780671903,-500.0,0.00017869,2]
[350307247,1737780671912,-1000.0,0.00017869,2]
[350307248,1737780671922,-1311.29,0.00017869,2]
[350307249,1737780671932,-544.74,0.00017869,2]
[350307250,1737780671941,-2088.26,0.00017869,2]
[350307251,1737780671951,-2022.35,0.00017869,2]
[350307252,1737780671960,-54529.36381126,0.00017936,2]
[350307253,1737780671972,-585.62,0.00017944,2]
[350307254,1737780672104,-694.69,0.00017944,2]
[350307255,1737780672114,-500.0,0.00017945,2]
[350307256,1737780672123,-179.26578298,0.00017945,2]
[350307257,1737780672132,-500.0,0.00017945,2]
[350307258,1737780672142,-500.0,0.00017945,2]
[350307259,1737780672151,-500.0,0.00017945,2]
[350307260,1737780672160,-500.0,0.00017945,2]
[350307261,1737780672169,-552.37,0.00017945,2]
[350307262,1737780672179,-746.74,0.00017945,2]
[350307263,1737780672188,-500.0,0.00017945,2]
[350307264,1737780672197,-500.0,0.00017945,2]
[350307265,1737780672206,-623.71,0.00017945,2]
[350307266,1737780672217,-560.1,0.00017945,2]
[350307267,1737780672226,-500.0,0.00017945,2]
[350307268,1737780672235,-500.0,0.00017945,2]
[350307269,1737780672245,-500.0,0.00017945,2]
[350307270,1737780672262,-500.0,0.00017945,2]
[350307271,1737780672272,-156.187301,0.00017945,2]
[350307272,1737780672286,-531.14,0.00017945,2]
[350307273,1737780672296,-500.0,0.00017945,2]
[350307274,1737780672307,-602.85,0.00017945,2]
[350307275,1737780672316,-163.487389,0.00017945,2]
[350307276,1737780672327,-500.0,0.00017945,2]
[350307277,1737780672337,-500.0,0.00017945,2]
[350307278,1737780672346,-500.0,0.00017945,2]
[350307279,1737780672355,-594.18,0.00017945,2]
[350307280,1737780672365,-500.0,0.00017945,2]
[350307281,1737780672375,-560.27,0.00017945,2]
[350307282,1737780672384,-500.0,0.00017945,2]